Cogmind - Beta 16.1 @@@ ROGUE MODE // 2026.02.17 @ 17:21:03 Player: Skergy Result: Destroyed by 7V-46N(R) with Subdweller Beam Cannon Performance ------------- Evolutions (0) 0 Regions Visited (2) 400 Robots Destroyed (23) 115 Value Destroyed (434) 434 Prototype IDs (0) 0 Alien Tech Used (0) 0 Bonus (0) 0 TOTAL SCORE: 949 Bonus ------- None Cogmind --------- Core Integrity 0/250 Matter 120/300 Energy 100/100 System Corruption 0% Temperature Cool (9) Movement Treading (160) Location -10/Subcaves Parts ------- > --- POWER (1) -------- (None) > --- PROPULSION (2) --- Light Treads Light Treads > --- UTILITY (2) ------ Large Storage Unit Seismic Detector > --- WEAPON (2) ------- Subdweller Shrapnel Launcher Makeshift Hammer > --- INVENTORY (15) --- Subdweller Power Source Aluminum Leg Aluminum Leg Subdweller Monowheel Small Matter Pod (50) Subdweller Optics Signal Interpreter ECM Suite Makeshift Kinetic Plating Scrap Shield Tractor Beam Small Laser Small Laser Assault Rifle Peak State ------------ > --- POWER ------------ Ion Engine > --- PROPULSION ------- Light Treads Light Treads > --- UTILITY ---------- Large Storage Unit Seismic Detector > --- WEAPON ----------- Subdweller Shrapnel Launcher Makeshift Hammer > --- INVENTORY -------- Subdweller Power Source Aluminum Leg Aluminum Leg Subdweller Monowheel Small Matter Pod Subdweller Optics Signal Interpreter ECM Suite Makeshift Kinetic Plating Scrap Shield Tractor Beam Small Laser Small Laser Assault Rifle [Rating: 13] Favorites ----------- Power Ion Engine Engine Ion Engine Propulsion Light Treads Treads Light Treads Utility Seismic Detector Device Seismic Detector Storage Large Storage Unit Protection Light Armor Plating Weapon Assault Rifle Energy Gun Small Laser Ballistic Gun Assault Rifle Launcher Subdweller Shrapnel Launcher Special Weapon Mining Laser Impact Weapon Makeshift Hammer Build | -11 -10 -10 ------- Run | Yrd Mat Sub Slots Evolved . | . . . Power . | . . . Propulsion . | . . . Utility . | . . . Weapon . | . . . Parts Attached 20 | 9 3 8 Power 2 | 1 . 1 Engine 2 | 1 . 1 Core . | . . . Reactor . | . . . Propulsion 4 | 2 . 2 Treads 4 | 2 . 2 Leg . | . . . Wheel . | . . . Hover . | . . . Flight . | . . . Utility 7 | 4 1 2 Device 3 | 3 . . Storage 2 | 1 1 . Processor . | . . . Hackware . | . . . Protection 2 | . . 2 Artifact . | . . . Weapon 7 | 2 2 3 Energy Gun 3 | 1 2 . Energy Cannon . | . . . Ballistic Gun 1 | 1 . . Ballistic Cannon . | . . . Launcher 1 | . . 1 Special Weapon 1 | . . 1 Impact Weapon 1 | . . 1 Slashing Weapon . | . . . Piercing Weapon . | . . . Special Melee Weapon . | . . . Unidentified Prototypes . | . . . Parts Lost 8 | . 2 6 Power 2 | . . 2 Propulsion 2 | . . 2 Utility 3 | . 1 2 Weapon 1 | . 1 . Highest Loss Streak 4 | . 1 4 To Critical Strikes . | . . . Average Backups 10 | 4 9 12 Power . | . 1 . Propulsion 2 | 1 2 2 Utility 4 | . 3 5 Weapon 2 | 1 2 2 Tool/Special . | . . . Unused Backups 10 | . . 10 Power 1 | . . 1 Propulsion 3 | . . 3 Utility 6 | . . 6 Weapon . | . . . Tool/Special . | . . . Average Slot Usage (%) 98 | . 99 98 Engine 13 | . 14 13 Treads 27 | . 28 27 Device 11 | . 13 10 Storage 14 | . 14 14 Protection 1 | . . 2 Energy Gun 10 | . 14 5 Ballistic Gun 13 | . 14 13 Special Weapon 2 | . . 6 Peak Build Rating 13 | 7 8 13 Average Rating 7 | 5 7 8 On Entrance 4 | . 7 7 Avg Prop Armor Cover (%) . | . . . Naked Turns . | . . . Heaviest Build 37 | 14 30 37 Greatest Support 40 | 40 40 40 Greatest Overweight (x) . | . . . Average Overweight (x) . | . . . Largest Inventory Capacity 15 | 8 15 15 Average Capacity 12 | 7 11 15 Most Carried 15 | 7 14 15 Average Carried 10 | 4 9 12 Final Capacity 15 | 8 15 15 Final Carried 15 | 7 14 15 Class Distribution -------------------- 100% | Mutant Dominant Class ---------------- Mutant | -10/Materials Mutant | -10/Subcaves Resources | -11 -10 -10 ----------- Run | Yrd Mat Sub Matter Collected 565 | 329 122 114 Remotely 195 | 195 . . Salvage Created 630 | 156 287 187 Parts 48 | 8 22 18 Haulers Intercepted . | . . . Recyclers Shooed . | . . . Parts Field Recycled . | . . . Retrieved Matter . | . . . Parts Self-Destructed 10 | . . 10 Prevented . | . . . Parts Restored . | . . . Kills | -11 -10 -10 ------- Run | Yrd Mat Sub Combat Hostiles Destroyed 17 | . 9 8 Guns 16 | . 9 7 AOE 1 | . . 1 Classes Destroyed 6 | 2 3 1 Tunneler 3 | 3 . . Recycler 1 | 1 . . Watcher 2 | . 2 . Swarmer 10 | . 6 4 Grunt 3 | . 3 . Subdweller 4 | . . 4 Best Kill Streak 3 | 2 3 3 Combat Bots Only 3 | . 3 3 Max Kills in Single Turn 1 | 1 1 1 Gunslinging . | . . . Exploded 1 | . . 1 Melee . | . . . Uniques/NPCs Destroyed . | . . . Combat | -11 -10 -10 -------- Run | Yrd Mat Sub Hostile Shots Fired 91 | . 33 58 Missed 24 | . 8 16 Hits 67 | . 25 42 Projectile 67 | . 25 42 AOE 8 | . . 8 Critical Strikes 1 | . . 1 Damage Taken 1348 | . 268 1080 Core 271 | . 49 222 Absorbed by Shields . | . . . Core Remaining (%) 100 | 100 . . Volleys Fired 83 | 13 27 43 Largest 2 | 2 2 2 Hottest 100 | 60 60 100 Shots Fired 156 | 26 54 76 Gun 146 | 26 54 66 Cannon . | . . . Launcher 4 | . . 4 Special 6 | . . 6 Kinetic 77 | 13 27 37 Thermal 61 | 13 9 39 Explosive . | . . . Electromagnetic 18 | . 18 . Robot Hit Streak 13 | 12 13 13 Robot Miss Streak 4 | 1 4 4 Penetration Max . | . . . Secondary Targets 2 | . . 2 Max Gunslinging Chain 1 | . . 1 Shots Hit Robots 106 | 20 35 51 Core Hits 38 | 5 15 18 Critical Kills . | . . . Critical Parts Destroyed 1 | . 1 . Critical Strikes 1 | . 1 . Destroy 1 | . 1 . Melee Attacks . | . . . Impact . | . . . Slashing . | . . . Piercing . | . . . Sneak Attacks . | . . . Combat Hostiles . | . . . Follow-up Attacks . | . . . Damage Inflicted 1590 | 247 442 901 Guns 1248 | 247 442 559 Cannons . | . . . Explosions 342 | . . 342 Melee . | . . . Ramming . | . . . Kinetic 983 | 136 197 650 Thermal 440 | 111 78 251 Explosive . | . . . Electromagnetic 167 | . 167 . Impact . | . . . Slashing . | . . . Piercing . | . . . Highest Corruption . | . . . Average Corruption . | . . . Corruption Purged . | . . . Corruption Blocked . | . . . Overload Shots . | . . . Overflow Damage . | . . . Projectiles . | . . . Explosions . | . . . Melee . | . . . Knockbacks . | . . . Impact . | . . . Kinetic . | . . . Secondary . | . . . Self-Inflicted Damage 94 | . . 94 Shots 3 | . . 3 Rammed 1 | . 1 . Targets Rammed 1 | . 1 . Kicked . | . . . Crushed . | . . . Highest Temperature 30 | . 30 . Average Temperature 15 | . 15 . Received Heat Transfer 234 | . 105 129 Siege Activations . | . . . Martial Activations . | . . . Shielding Activations . | . . . Robots Disrupted . | . . . Combat Hostiles . | . . . Robots Corrupted . | . . . Combat Hostiles . | . . . Parts Fried . | . . . Impact Corruptions . | . . . Robots Melted . | . . . Combat Hostiles . | . . . Parts Melted 2 | . 1 1 Heat Transferred 1000 | 250 175 575 Parts Sabotaged . | . . . Parts Stolen . | . . . Parts Stripped . | . . . Power Chain Reactions . | . . . Alert | -11 -10 -10 ------- Run | Yrd Mat Sub Maximum Alert Level . | . . . Low Security (%) 100 | 100 100 . Level 1 . | . . . Level 2 . | . . . Level 3 . | . . . Level 4 . | . . . Level 5 . | . . . High Security . | . . . Max Security . | . . . Peak Influence 87 | 10 87 . Initial . | . . . Average 16 | 1 18 . Influence Increases 523 | 20 333 170 Destroy 0b10 Robot/C 260 | . 180 80 Destroy 0b10 Robot/NC 30 | 20 10 . Destroy Leader 44 | . 44 . Successful Hack 23 | . 23 . Destroy Structure 1 | . 1 . Lose Combat Pursuer 165 | . 75 90 Influence Decreases 523 | 20 252 251 Entered New Map 40 | . . 40 Time Decay 423 | 20 242 161 Lost Part 60 | . 10 50 Squads Dispatched 1 | . 1 . Investigation . | . . . Extermination . | . . . Reinforcement 1 | . 1 . Assault . | . . . Garrison . | . . . Intercept . | . . . Searches Triggered . | . . . Construction Impeded . | . . . Haulers Reinforced . | . . . Active Scanning Responses . | . . . Cargo Convoy Interrupts . | . . . Stealth | -11 -10 -10 --------- Run | Yrd Mat Sub Distress Signals 2 | . 2 . Communications Jammed . | . . . Distress Signals . | . . . Times Spotted 26 | . 15 11 Peak Tracking Total 4 | . 3 4 Tactical Retreats 7 | . 4 3 Traps | -11 -10 -10 ------- Run | Yrd Mat Sub Traps Triggered . | . . . Indirectly . | . . . Trap Hack Attempts . | . . . Triggered . | . . . Disarmed . | . . . Reprogrammed . | . . . Reused . | . . . Traps Extracted . | . . . Installed . | . . . Triggered . | . . . Machines | -11 -10 -10 ---------- Run | Yrd Mat Sub Machines Disabled . | . . . Max in Single Turn . | . . . Machines Repaired . | . . . Machines Dismantled . | . . . Machines Sabotaged . | . . . Overloaded Fab Kills . | . . . Hacking | -11 -10 -10 --------- Run | Yrd Mat Sub Machines Accessed 7 | . 6 1 Terminals 6 | . 6 . Fabricators . | . . . Repair Stations . | . . . Recycling Units . | . . . Scanalyzers . | . . . Garrison Access . | . . . Total Hacks 21 | . 18 3 Successful 11 | . 8 3 Failed 10 | . 10 . Catastrophic 2 | . 2 . Database Lockouts . | . . . Manual 17 | . 17 . Terminals 18 | . 18 . Fabricators . | . . . Repair Stations . | . . . Recycling Units . | . . . Scanalyzers . | . . . Garrison Access . | . . . Terminal Hacks 4 | . 1 3 Record 3 | . . 3 Zone Layout 1 | . 1 . Fabricator Hacks . | . . . Repair Station Hacks . | . . . Recycling Unit Hacks . | . . . Scanalyzer . | . . . Garrison Access Hacks . | . . . Unauthorized Hacks 7 | . 7 . Terminals 7 | . 7 . Track 1 | . 1 . Botnet 4 | . 4 . Disrupt 1 | . 1 . Operators 1 | . 1 . Fabricators . | . . . Repair Stations . | . . . Recycling Units . | . . . Scanalyzers . | . . . Garrison Access . | . . . Data Cores Recovered . | . . . Used . | . . . Hacking Detections 6 | . 6 . Full Trace Events . | . . . Feedback Events . | . . . Feedback Blocked . | . . . Robot Schematics Acquired . | . . . Robots Built . | . . . Authchips . | . . . Time . | . . . Total Robot Build Rating . | . . . Part Schematics Acquired . | . . . Parts Built . | . . . Authchips . | . . . Time . | . . . Total Part Build Rating . | . . . Part Studies Acquired . | . . . Parts Repaired . | . . . Time . | . . . Parts Recycled . | . . . Recycled Matter . | . . . Retrieved Matter . | . . . Retrieved Components . | . . . Parts Scanalyzed . | . . . Part Schematics Acquired . | . . . Parts Damaged . | . . . Bothacking | -11 -10 -10 ------------ Run | Yrd Mat Sub Used RIF Installer . | . . . Robots Hacked . | . . . Non-combat . | . . . Combat . | . . . Robot Hacks Applied . | . . . Relay Couplers Released . | . . . Fabnet Peak Effective % . | . . . Robots Rewired . | . . . Allies Hacked . | . . . Hacks Repelled . | . . . Allies | -11 -10 -10 -------- Run | Yrd Mat Sub Total Allies . | . . . Largest Group . | . . . Highest-Rated Group . | . . . Highest-Rated Ally . | . . . Total Orders . | . . . Ally Attacks . | . . . Total Damage . | . . . Kills . | . . . Allies Corrupted . | . . . Allies Melted . | . . . Intel | -11 -10 -10 ------- Run | Yrd Mat Sub Active Infowar (turns) 1595 | 27 974 594 Seismic 1595 | 27 974 594 Robot Analysis Total . | . . . Derelict Logs Recovered . | . . . Drone Launches . | . . . Drone Recoveries . | . . . Exploration | -11 -10 -10 ------------- Run | Yrd Mat Sub Turns Passed 1982 | 145 1015 822 Spaces Moved 1000 | 57 537 406 Core 3 | 3 . . Treads 997 | 54 537 406 Legs . | . . . Wheels . | . . . Hover . | . . . Flight . | . . . Fastest Speed 50 | 50 160 160 Average Speed 159 | 154 160 160 Slowest Speed 160 | 160 160 160 Overloaded Moves . | . . . Propulsion Burnouts . | . . . Robots Hopped . | . . . Potential Cave-ins . | . . . Cave-ins Triggered . | . . . Exploration Rate (%) 43 | 4 91 36 Regions Visited 2 Branch Regions 1 Pre-discovered Areas 1 | . . 1 Known Exits Taken . | . . . Unknown Exits Taken 2 | 1 1 . Scrap Searched . | . . . Spaces Dug . | . . . Terrain Destroyed 26 | . . 26 Melee . | . . . Projectile . | . . . AOE 26 | . . 26 Terrain Rammed . | . . . Walls Destroyed . | . . . Machines Disabled . | . . . Actions | -11 -10 -10 --------- Run | Yrd Mat Sub Total 1211 | 85 638 488 Wait 81 | . 62 19 Move 998 | 56 536 406 Hop . | . . . Pick Up 21 | 6 8 7 Fast Attach 7 | 7 . . Attach 8 | 1 1 6 Detach 1 | 1 . . Swap 9 | 1 2 6 Drop 2 | . 1 1 Fire 83 | 13 27 43 Melee . | . . . Ram . | . . . Kick . | . . . Crush 1 | . 1 . Escape Stasis . | . . . Rewire . | . . . Trap . | . . . Miscellaneous . | . . . Route ------- -11/Scrapyard -10/Materials (discovered 4 exits: [*Mat x2] / [*Min] / *Sub) -10/Subcaves (discovered 2 exits: Rec / [*Scr]) History --------- Turn | Location | Event 21 | -11/Scrapyard | Discovered new exit (range 16) 146 | -11/Scrapyard | Entered Materials 310 | -10/Materials | Build established: Mutant 434 | -10/Materials | Discovered new exit (range 16) 864 | -10/Materials | Discovered new exit (range 16) 1050 | -10/Materials | Discovered new exit (range 14) 1149 | -10/Materials | Discovered new exit (range 7) 1161 | -10/Materials | Entered Subcaves 1162 | -10/Subcaves | Approached by a straggling Scientist 1176 | -10/Subcaves | Scientist uncovered a shortcut to Scraptown 1316 | -10/Subcaves | Disturbed a concealed Subdweller 1323 | -10/Subcaves | Ambushed by Subdweller buried in earth 1335 | -10/Subcaves | Core integrity fell below 50% 1397 | -10/Subcaves | Lost 4 parts (2n2u) 1550 | -10/Subcaves | Shifting Twisted Machinery released Sub. Monowheel 1561 | -10/Subcaves | Shifting Twisted Machinery released Sub. Power Source 1690 | -10/Subcaves | Visited Clippyterm 1695 | -10/Subcaves | Identified exit to Recycling 1695 | -10/Subcaves | Learned location of Section 7 (-2) 1980 | -10/Subcaves | Core integrity fell below 20% 1983 | -10/Subcaves | Destroyed by 7V-46N(R) with Subdweller Beam Cannon Last Messages --------------- 01695_ Connecting with Clippyterm... 01695_ Current location identified: Subcaves >>Record "Trash" It looks like you need to recycle something, would you like help? Loading 1 Recycling entrance... >>Record "World Domination" It looks like you're trying to take over the world, would you like help? World map updated: -2/Section 7. >>Record "Hexidium" It looks like you're searching for the Unchained HQ. I could tell you where it is but then I'd have to kill you. 01801_ Acquired Scrap Shield. 01830_ Acquired Mak. Kinetic Plating. 01925_ Dropped Mining Laser. 01926_ Acquired Mak. Hammer. 01978_ Ion Engine destroyed. 01982_ WE-73V(R) destroyed. Map ----- +----------------------------------------------------+ | ????????????# ## #### ##???????? | | ????????????# #??## ######????????? | | ????????????## ####### ##?????????????? | | ?????????????## # # ### #??????????????? | | ??????????????# ### ### ##?????????????? | | ??????????????###?# ## #?????????????? | | ??????????????????### # #?????????????? | | ????????????????????# # # #????????????? | | ????????????????????## #?? #????????????? | | ?????????????????????## ## #??? ????????????? | | ??????????????????????## ### ##????#???????????? | | ???????????????????????##### #?????????????????? | | ??????????????????????????# #?????????????????? | | ?????????????????????????## ##???????? ??????? | | ???????????????????????### #??????? #???????? | | ???????????????????????# #????## #????????? | | ???????????????????????# ##?? ##???????? | | ???????????????????????# ### #???????? | | ???????????????????????# #???????? | | ???????????????????????###### #???????? | | ????????????????????????????##| ## #???????? | | ????????????????????????###??# ##???????????? | | ??????????????????????### ##?# #????????????? | | ??????????????????????# ### ##????????????? | | ???????????????????????# # #?????????????? | | ???????????????????????# @ ###?????????????? | | ???????????????????????# ##??????????????? | | ???????????????????????# & #??????????????? | | ???????????????????????# R %! ;; #???????????? | | ??????????????????????? & ; #???????????? | | ???????????????????????# ; #???????????? | | ???????????????????????# ;;;#???????????? | | ?????????????????????? ; ; ???????????? | | ????????????????????? ### ???????????? | | ???????????????????? ## ##??????????????? | | ?????????????????? ### #???????????????? | | ?????????????????# #?? #???????????????? | | ?????????????????# ## ##?? #???????????????? | | ????????????????# ?# ##??? ??????????????? | | ????????????????## ??##????? #####?????????????? | | ?????????????????## ????????????????????????????? | | ??????????????????# ?????????????????????????????? | | ??????????????????# ?????????????????????????????? | | ??????????????????#??????????????????????????????? | | ?????????????????????????????????????????????????? | | ?????????????????????????????????????????????????? | | ?????????????????????????????????????????????????? | | ?????????????????????????????????????????????????? | | ?????????????????????????????????????????????????? | | ?????????????????????????????????????????????????? | +----------------------------------------------------+ Best States ------------- Heat Dissipation 25 Energy Generation 10 Energy Capacity 250 Matter Stores 300 Matter Capacity 300 Sight Range 16 Terrain Scan Density 10 Armor Coverage 150 Evasion (%) 40 Recoil Reduction 2 Item Schematics ----------------- None Robot Schematics ------------------ None Fabricated ------------ Nothing Repaired ---------- Nothing Studied --------- None Alien Tech Used ----------------- None Achievements -------------- None Challenges ------------ None Game ------ Seed GammaTractorBattery Manual? 0 Play Time 00:16:57 Cumulative 132.5 hours Start 2026.02.17 @ 17:08:53 End 2026.02.17 @ 17:21:03 Sessions 1 Manual Loads 0 Difficulty Rogue Special Mode None Game No. 144 Rogue 144 Adventurer 0 Explorer 0 Win Type - Total 4 Types 4/0/0/0/0/0/0/0/0/0 Lore% 69 Gallery% 53 Achievement% 42 Wizard Run 0 Options --------- Layout 1 ASCII 0 Keyboard 1 Movement Vi Keybinds 0 Fullscreen 2 Font 24/Terminus Map View 50x35 Zoom Use 0% Tactical HUD 1 Map Filters NONE Filters NONE Steam 1 RUN: a88a8eee-affe-4dfb-827a-20e275ac6db7